Cogmind - Beta 15 @@@ ROGUE MODE // 2025.05.09 @ 19:44:24 Player: L-470 Result: Self-destructed Performance ------------- Evolutions (1) 500 Regions Visited (3) 600 Robots Destroyed (34) 170 Value Destroyed (595) 595 Prototype IDs (0) 0 Alien Tech Used (0) 0 Bonus (0) 0 TOTAL SCORE: 1865 Bonus ------- None Cogmind --------- Core Integrity 192/400 Matter 290/300 Energy 100/100 System Corruption 0% Temperature Cool (0) Movement Core (1400) Ox27 Location -9/Materials Parts ------- > --- POWER (1) -------- (None) > --- PROPULSION (3) --- (None) > --- UTILITY (3) ------ Huge Storage Unit > --- WEAPON (2) ------- Assault Rifle > --- INVENTORY (25) --- Flight Unit Flight Unit Flight Unit Flight Unit Huge Storage Unit Hacking Suite Katana Peak State ------------ > --- POWER ------------ Light Ion Engine > --- PROPULSION ------- Light Treads Light Treads Compact Wheel > --- UTILITY ---------- Small Storage Unit Seismic Detector Light Armor Plating > --- WEAPON ----------- Light Assault Rifle Light Assault Rifle > --- INVENTORY -------- Flight Unit Flight Unit Flight Unit Flight Unit Hacking Suite Assault Rifle Light Assault Rifle Light Assault Rifle [Rating: 10] Favorites ----------- Power Ion Engine Engine Ion Engine Propulsion Aluminum Leg Treads Light Treads Leg Aluminum Leg Wheel Compact Wheel Utility Seismic Detector Device Seismic Detector Storage Small Storage Unit Protection Light Armor Plating Weapon Light Assault Rifle Ballistic Gun Light Assault Rifle Build | -11 -10 -10 -9 ------- Run | Yrd Mat Min Mat Slots Evolved 2 | . . . 2 Power . | . . . . Propulsion 1 | . . . 1 Utility 1 | . . . 1 Weapon . | . . . . Parts Attached 15 | 1 . . 14 Power 1 | . . . 1 Engine 1 | . . . 1 Core . | . . . . Reactor . | . . . . Propulsion 5 | . . . 5 Treads 2 | . . . 2 Leg . | . . . . Wheel 3 | . . . 3 Hover . | . . . . Flight . | . . . . Utility 4 | 1 . . 3 Device 1 | 1 . . . Storage 1 | . . . 1 Processor . | . . . . Hackware . | . . . . Protection 2 | . . . 2 Artifact . | . . . . Weapon 5 | . . . 5 Energy Gun . | . . . . Energy Cannon . | . . . . Ballistic Gun 5 | . . . 5 Ballistic Cannon . | . . . . Launcher . | . . . . Special Weapon . | . . . . Impact Weapon . | . . . . Slashing Weapon . | . . . . Piercing Weapon . | . . . . Special Melee Weapon . | . . . . Unidentified Prototypes . | . . . . Parts Lost 14 | . . . 14 Power 2 | . . . 2 Propulsion 5 | . . . 5 Utility 3 | . . . 3 Weapon 4 | . . . 4 Highest Loss Streak 11 | . . . 11 To Critical Strikes . | . . . . Average Backups 7 | 6 7 7 8 Power . | 1 1 1 . Propulsion 4 | 4 4 4 4 Utility 1 | . . 1 1 Weapon 1 | 1 1 1 2 Tool/Special . | . . . . Unused Backups 18 | 6 3 1 8 Power 3 | 1 . 1 1 Propulsion 10 | 2 3 . 5 Utility 3 | 1 . . 2 Weapon 2 | 2 . . . Tool/Special . | . . . . Average Slot Usage (%) 92 | . 100 100 86 Engine 11 | . 14 14 9 Treads 9 | . . . 16 Leg 14 | . 28 28 4 Wheel 3 | . . . 6 Device 11 | . 14 14 9 Storage 12 | . 14 14 11 Protection 4 | . . . 8 Ballistic Gun 24 | . 28 28 21 Peak Build Rating 10 | 7 7 7 10 Average Rating 7 | 6 7 7 8 On Entrance 6 | 6 7 7 7 Naked Turns . | . . . . Heaviest Build 89 | 13 13 13 89 Greatest Support 40 | 20 20 20 40 Greatest Overweight (x) 8 | . . . 8 Average Overweight (x) . | . . . 1 Largest Inventory Capacity 25 | 8 8 8 25 Average Capacity 12 | 8 8 8 15 Most Carried 10 | 6 8 8 10 Average Carried 7 | 6 7 7 8 Final Capacity 25 | 8 8 8 25 Final Carried 8 | 6 8 8 7 Class Distribution -------------------- 57% | Mutant 42% | Scavenger-Mutant Dominant Class ---------------- Mutant | -10/Materials Mutant | -10/Mines Scavenger-Mutant | -9/Materials Resources | -11 -10 -10 -9 ----------- Run | Yrd Mat Min Mat Matter Collected 484 | 228 10 28 218 Remotely . | . . . . Salvage Created 881 | 116 43 75 647 Parts 78 | 6 6 8 58 Haulers Intercepted . | . . . . Recyclers Shooed 1 | . . . 1 Parts Field Recycled . | . . . . Retrieved Matter . | . . . . Parts Self-Destructed . | . . . . Prevented . | . . . . Kills | -11 -10 -10 -9 ------- Run | Yrd Mat Min Mat Combat Hostiles Destroyed 28 | . 3 6 19 Guns 28 | . 3 6 19 Classes Destroyed 9 | 2 1 . 6 Worker 1 | . . . 1 Builder 1 | . . . 1 Tunneler 2 | 2 . . . Recycler 1 | 1 . . . Operator 1 | . . . 1 Swarmer 19 | . 3 6 10 Grunt 4 | . . . 4 Duelist 1 | . . . 1 Sentry 4 | . . . 4 Best Kill Streak 6 | 2 3 3 6 Combat Bots Only 6 | . 3 3 6 Max Kills in Single Turn 2 | 1 2 1 1 Gunslinging . | . . . . Exploded . | . . . . Melee . | . . . . Uniques/NPCs Destroyed . | . . . . Combat | -11 -10 -10 -9 -------- Run | Yrd Mat Min Mat Hostile Shots Fired 189 | . 16 27 146 Missed 44 | . 1 6 37 Hits 145 | . 15 21 109 Melee 2 | . . . 2 Projectile 143 | . 15 21 107 Critical Strikes 2 | . . . 2 Damage Taken 1456 | . 125 159 1172 Core 267 | . 13 46 208 Absorbed by Shields . | . . . . Core Remaining (%) 88 | 100 . 76 . Volleys Fired 95 | 9 6 13 67 Largest 2 | 2 2 2 2 Hottest 40 | 40 40 40 40 Shots Fired 188 | 18 12 26 132 Gun 188 | 18 12 26 132 Cannon . | . . . . Launcher . | . . . . Special . | . . . . Kinetic 188 | 18 12 26 132 Thermal . | . . . . Explosive . | . . . . Electromagnetic . | . . . . Robot Hit Streak 11 | 4 7 4 11 Robot Miss Streak 6 | 3 2 4 6 Penetration Max . | . . . . Secondary Targets 6 | . . 1 5 Max Gunslinging Chain 1 | . . 1 1 Shots Hit Robots 111 | 11 6 13 81 Core Hits 63 | 5 6 9 43 Critical Kills 1 | 1 . . . Critical Parts Destroyed . | . . . . Critical Strikes 1 | 1 . . . Destroy 1 | 1 . . . Melee Attacks . | . . . . Impact . | . . . . Slashing . | . . . . Piercing . | . . . . Sneak Attacks . | . . . . Combat Hostiles . | . . . . Follow-up Attacks . | . . . . Damage Inflicted 914 | 94 49 112 659 Guns 914 | 94 49 112 659 Cannons . | . . . . Explosions . | . . . . Melee . | . . . . Ramming . | . . . . Kinetic 914 | 94 49 112 659 Thermal . | . . . . Explosive . | . . . . Electromagnetic . | . . . . Impact . | . . . . Slashing . | . . . . Piercing . | . . . . Highest Corruption 4 | . 4 4 . Average Corruption 3 | . 1 4 . Corruption Purged . | . . . . Corruption Blocked . | . . . . Effects 6 | . 2 4 . Energy Discharges 1 | . . 1 . Parts Fused 1 | . . 1 . Data Loss (minor) 3 | . 1 2 . Data Loss (major) 1 | . 1 . . Overload Shots . | . . . . Overflow Damage . | . . . . Projectiles . | . . . . Explosions . | . . . . Melee . | . . . . Knockbacks . | . . . . Impact . | . . . . Kinetic . | . . . . Secondary . | . . . . Self-Inflicted Damage . | . . . . Shots . | . . . . Rammed . | . . . . Targets Rammed . | . . . . Kicked . | . . . . Crushed . | . . . . Highest Temperature 18 | . . . 18 Average Temperature 6 | . . . 6 Received Heat Transfer 318 | . . . 318 Siege Activations . | . . . . Martial Activations . | . . . . Shielding Activations . | . . . . Robots Disrupted . | . . . . Combat Hostiles . | . . . . Robots Corrupted . | . . . . Combat Hostiles . | . . . . Parts Fried . | . . . . Impact Corruptions . | . . . . Robots Melted . | . . . . Combat Hostiles . | . . . . Parts Melted . | . . . . Heat Transferred . | . . . . Parts Sabotaged . | . . . . Parts Stolen . | . . . . Parts Stripped . | . . . . Power Chain Reactions . | . . . . Alert | -11 -10 -10 -9 ------- Run | Yrd Mat Min Mat Maximum Alert Level 1 | . . . 1 Low Security (%) 95 | 100 100 100 91 Level 1 4 | . . . 8 Level 2 . | . . . . Level 3 . | . . . . Level 4 . | . . . . Level 5 . | . . . . High Security . | . . . . Max Security . | . . . . Peak Influence 231 | 10 70 73 231 Initial 23 | . . 3 23 Average 61 | 1 29 31 92 Influence Increases 765 | 15 70 140 540 Destroy 0b10 Robot/C 560 | . 60 120 380 Destroy 0b10 Robot/NC 30 | 15 . . 15 Destroy Leader 130 | . 10 20 100 Lose Combat Pursuer 45 | . . . 45 Influence Decreases 580 | 15 60 90 415 Entered New Map 44 | . . 7 37 Time Decay 396 | 15 60 83 238 Lost Part 140 | . . . 140 Squads Dispatched 3 | . 1 . 2 Investigation . | . . . . Extermination . | . . . . Reinforcement 3 | . 1 . 2 Assault . | . . . . Garrison . | . . . . Intercept . | . . . . Searches Triggered . | . . . . Construction Impeded . | . . . . Haulers Reinforced . | . . . . Active Scanning Responses . | . . . . Cargo Convoy Interrupts . | . . . . Stealth | -11 -10 -10 -9 --------- Run | Yrd Mat Min Mat Distress Signals 2 | . . . 2 Communications Jammed . | . . . . Distress Signals . | . . . . Times Spotted 37 | . 5 6 26 Peak Tracking Total 7 | . 3 3 7 Tactical Retreats 2 | . . . 2 Traps | -11 -10 -10 -9 ------- Run | Yrd Mat Min Mat Traps Triggered 3 | . 3 . . Indirectly . | . . . . Trap Hack Attempts . | . . . . Triggered . | . . . . Disarmed . | . . . . Reprogrammed . | . . . . Reused . | . . . . Traps Extracted . | . . . . Installed . | . . . . Triggered . | . . . . Machines | -11 -10 -10 -9 ---------- Run | Yrd Mat Min Mat Machines Disabled . | . . . . Max in Single Turn . | . . . . Machines Repaired . | . . . . Machines Dismantled . | . . . . Machines Sabotaged . | . . . . Overloaded Fab Kills . | . . . . Hacking | -11 -10 -10 -9 --------- Run | Yrd Mat Min Mat Machines Accessed . | . . . . Terminals . | . . . . Fabricators . | . . . . Repair Stations . | . . . . Recycling Units . | . . . . Scanalyzers . | . . . . Garrison Access . | . . . . Total Hacks . | . . . . Successful . | . . . . Failed . | . . . . Catastrophic . | . . . . Database Lockouts . | . . . . Manual . | . . . . Terminals . | . . . . Fabricators . | . . . . Repair Stations . | . . . . Recycling Units . | . . . . Scanalyzers . | . . . . Garrison Access . | . . . . Terminal Hacks . | . . . . Fabricator Hacks . | . . . . Repair Station Hacks . | . . . . Recycling Unit Hacks . | . . . . Scanalyzer . | . . . . Garrison Access Hacks . | . . . . Unauthorized Hacks . | . . . . Terminals . | . . . . Fabricators . | . . . . Repair Stations . | . . . . Recycling Units . | . . . . Scanalyzers . | . . . . Garrison Access . | . . . . Data Cores Recovered . | . . . . Used . | . . . . Hacking Detections . | . . . . Full Trace Events . | . . . . Feedback Events . | . . . . Feedback Blocked . | . . . . Robot Schematics Acquired . | . . . . Robots Built . | . . . . Authchips . | . . . . Time . | . . . . Total Robot Build Rating . | . . . . Part Schematics Acquired . | . . . . Parts Built . | . . . . Authchips . | . . . . Time . | . . . . Total Part Build Rating . | . . . . Parts Repaired . | . . . . Time . | . . . . Parts Recycled . | . . . . Recycled Matter . | . . . . Retrieved Matter . | . . . . Retrieved Components . | . . . . Parts Scanalyzed . | . . . . Part Schematics Acquired . | . . . . Parts Damaged . | . . . . Bothacking | -11 -10 -10 -9 ------------ Run | Yrd Mat Min Mat Used RIF Installer . | . . . . Robots Hacked . | . . . . Non-combat . | . . . . Combat . | . . . . Robot Hacks Applied . | . . . . Relay Couplers Released . | . . . . Fabnet Peak Effective % . | . . . . Robots Rewired . | . . . . Allies Hacked . | . . . . Hacks Repelled . | . . . . Allies | -11 -10 -10 -9 -------- Run | Yrd Mat Min Mat Total Allies . | . . . . Largest Group . | . . . . Highest-Rated Group . | . . . . Highest-Rated Ally . | . . . . Total Orders . | . . . . Ally Attacks . | . . . . Total Damage . | . . . . Kills . | . . . . Allies Corrupted . | . . . . Allies Melted . | . . . . Intel | -11 -10 -10 -9 ------- Run | Yrd Mat Min Mat Active Infowar (turns) 804 | 8 152 211 433 Seismic 804 | 8 152 211 433 Robot Analysis Total . | . . . . Derelict Logs Recovered 1 | . . 1 . Drone Launches . | . . . . Drone Recoveries . | . . . . Exploration | -11 -10 -10 -9 ------------- Run | Yrd Mat Min Mat Turns Passed 949 | 81 152 211 505 Spaces Moved 483 | 19 108 142 214 Core . | . . . . Treads 35 | . . . 35 Legs 297 | 19 108 142 28 Wheels 151 | . . . 151 Hover . | . . . . Flight . | . . . . Fastest Speed 95 | 120 120 120 95 Average Speed 126 | 120 120 120 133 Slowest Speed 200 | 120 120 120 200 Overloaded Moves . | . . . . Propulsion Burnouts . | . . . . Robots Hopped . | . . . . Potential Cave-ins . | . . . . Cave-ins Triggered . | . . . . Exploration Rate (%) 21 | 2 26 37 19 Regions Visited 3 Branch Regions 1 Pre-discovered Areas . | . . . . Known Exits Taken . | . . . . Unknown Exits Taken 3 | 1 1 1 . Scrap Searched 1 | . . 1 . Spaces Dug . | . . . . Terrain Destroyed . | . . . . Melee . | . . . . Projectile . | . . . . AOE . | . . . . Terrain Rammed . | . . . . Walls Destroyed . | . . . . Machines Disabled . | . . . . Actions | -11 -10 -10 -9 --------- Run | Yrd Mat Min Mat Total 670 | 62 122 162 324 Wait 63 | 34 1 6 22 Move 480 | 18 107 141 214 Hop . | . . . . Pick Up 10 | . 5 1 4 Fast Attach 5 | 1 . . 4 Attach 6 | . . . 6 Detach . | . . . . Swap 4 | . . . 4 Drop 7 | . 3 1 3 Fire 95 | 9 6 13 67 Melee . | . . . . Ram . | . . . . Kick . | . . . . Crush . | . . . . Escape Stasis . | . . . . Rewire . | . . . . Trap . | . . . . Miscellaneous . | . . . . Route ------- -11/Scrapyard -10/Materials -10/Mines -9/Materials (discovered 2 exits: [*Min] / Sto) History --------- Turn | Location | Event 1 | -11/Scrapyard | Discovered new exit (range 3) 82 | -11/Scrapyard | Entered Materials 186 | -10/Materials | Discovered new exit (range 12) 234 | -10/Materials | Entered Mines 311 | -10/Mines | Build established: Mutant 413 | -10/Mines | Discovered new exit (range 8) 445 | -10/Mines | Entered Materials 445 | -9/Materials | Evolved 2 slots: Propulsion x1, Utility x1 446 | -9/Materials | Identified exit to Storage 633 | -9/Materials | Discovered new exit (range 8) 785 | -9/Materials | Build established: Scavenger-Mutant 936 | -9/Materials | Core integrity fell below 50% 950 | -9/Materials | Self-destructed Last Messages --------------- Leg. 00906_ G-34 Mercenary destroyed. 00908_ R-06 Scavenger collects Unknown Processor. 00909_ Lgt. Assault Rifle destroyed. 00912_ R-06 Scavenger collects Flight Unit. 00913_ Lgt. Assault Rifle destroyed. 00915_ R-06 Scavenger collects Sml. Laser. 00920_ R-06 Scavenger inserts Wheel into recycling unit. 00923_ R-06 Scavenger inserts Terrain Scanner into recycling unit. 00923_ G-34 Mercenary destroyed. 00924_ Recycling unit begins recycling process. 00929_ Acquired 42 matter. 00930_ K-01 Serf collects debris. 00933_ Acquired Katana. 00939_ Lgt. Assault Rifle destroyed. 00948_ Wheel destroyed. 00948_ Lgt. Assault Rifle destroyed. Map ----- +----------------------------------------------------+ | ?????????????????????????????????????????????????? | | ?????????????????????????????????????????????????? | | ?????????????????????????????????????????????????? | | ?????????????????????????????????????????????????? | | ?????????????????????????????????????????????????? | | ?????????????????????????????????????????????????? | | ?????????????????????????????????????????????????? | | ?????????????????????????????????????????????????? | | ?????????????????????????????????????????????????? | | ?????????????????????????????????????????????????? | | ???????????????????????? ??????????????????????? | | ???????????????????????? ??????????????????????? | | ???????????????????????? ??????????????????????? | | ?????????????????????### #?????????????????????? | | ???????????????????? w#?????????????????????? | | ???????????????????? gg/?????????????????????? | | ?????????????+?????? !! #?????????????????????? | | ?????????????# ??? ! %= #?????????????????????? | | ?????????????# """? [ #?????????????????????? | | ?????????????# #?????????????????????? | | ?????????????# ########### ???????? | | ?????????????# """ =%! ???????? | | ?????????????? """ ^*[ ???????? | | ??????????????? """ """ ???????? | | ?????????????? "Y ???????? | | ???????????# """ @!= ???????? | | ???????????# %=% # #???????? | | ???????????# =!=% # #???????? | | ??########## #######=############ #???????? | | ??# #####?????????#%#??????????+ #???????? | | ??# #?????????????#=#??????????# #???????? | | ??# #?????????????#*#??????????# #???????? | | ??# """ #?????????????#=#??????????# ##??????? | | ??# """ #????????????##%##?????????# T#??????? | | ??# """ #????????????#==%#?????????#= #???????? | | ### #????????????#[<[#?????????#% =#???????? | | # """ #????????????# *#?????????#* #???????? | | # """ #????????????## ##?????????# #???????? | | # """ #?????????????# #??????????# #???????? | | # !#???????????### ###????????# ######### | | ###+################# #????????# | | # %########## == | | + =% | | # !#############+######+# | | #+#+##############+## #????## %%%*[# | | # ?????# ###+###????#[% [ # | | ! # ???# """ # ?????##! # | | # ??# """ # #????# || # | | # """ """ ## """ # """ #????# || # | | ### """ """ ## = # """ ]#????# # """ | +----------------------------------------------------+ Best States ------------- Heat Dissipation 28 Energy Generation 10 Energy Capacity 250 Matter Stores 300 Matter Capacity 300 Sight Range 16 Terrain Scan Density 10 Armor Coverage 150 Evasion (%) 55 Recoil Reduction 2 Item Schematics ----------------- None Robot Schematics ------------------ None Fabricated ------------ Nothing Repaired ---------- Nothing Alien Tech Used ----------------- None Achievements -------------- None Challenges ------------ None Game ------ Seed GreatBiomechanicalBiocell Manual? 0 Play Time 00:10:51 Cumulative 63.5 hours Start 2025.05.09 @ 14:27:48 End 2025.05.09 @ 19:44:24 Sessions 3 Manual Loads 0 Difficulty Rogue Special Mode None Game No. 101 Rogue 91 Adventurer 10 Explorer 0 Win Type - Total 2 Types 2/0/0/0/0/0/0/0/0/0 Lore% 21 Gallery% 32 Achievement% 37 Wizard Run 0 Options --------- Layout 1 ASCII 0 Keyboard 0 Movement Mouse Keybinds 1 Fullscreen 1 Font 24/Smallcaps Map View 50x35 Zoom Use 0% Tactical HUD 1 Map Filters NONE Filters NONE Steam 1 RUN: 3f707626-6e4b-41f3-ae1c-eda0e7ca52d6